bitfinex/quotes_ETHUSD_20250131
["timestamp","ask_amount","ask_price","bid_price","bid_amount"]
[1738324992910,0.55,3334.1,3332.3,3.80221]
[1738324992911,0.015,3333.6,3332.3,3.80221]
[1738324993107,3.00003,3333.3,3332.4,6.00081]
[1738324993316,3.0002,3333.2,3332.6,3.0]
[1738324993496,0.7997,3333.4,3332.3,3.00091]
[1738324993696,3.00041,3332.9,3331.9,0.7576]
[1738324993896,3.0003,3333.0,3332.3,3.00092]
[1738324994345,3.0003,3333.0,3332.4,3.00083]
[1738324994646,3.00021,3333.1,3332.2,3.001]
[1738324994860,0.7997,3333.4,3332.2,3.001]
[1738324994861,0.7997,3333.4,3332.3,0.03000736]
[1738324995006,2.99976,3333.6,3332.9,3.00032]
[1738324995208,3.00031,3333.0,3332.3,3.0009]
[1738324995406,3.00014,3333.2,3332.3,3.0009]
[1738324995627,3.00052,3332.8,3332.1,3.00106]
[1738324995834,3.00033,3333.0,3332.2,3.0]
[1738324996157,3.00098,3332.3,3331.4,0.8084]
[1738324996309,3.00098,3332.3,3331.4,3.81013]
[1738324996514,3.00098,3332.3,3331.7,3.0]
[1738324996707,3.00075,3332.5,3331.7,3.0014]
[1738324996914,3.00084,3332.4,3331.7,3.0014]
[1738324997128,3.00068,3332.6,3331.7,3.0014]
[1738324997323,3.00798,3332.8,3331.8,3.00138]
[1738324997626,3.00059,3332.7,3332.0,3.00118]
[1738324997823,3.60956,3332.8,3332.0,3.00118]
[1738324997824,3.00798,3332.8,3332.0,3.00118]
[1738324998141,0.78,3333.1,3331.9,3.0]
[1738324998142,3.00071,3332.6,3331.9,3.0]
[1738324998326,0.0075,3332.7,3331.9,3.0]
[1738324999057,3.00807,3332.7,3331.9,3.0]
[1738324999262,3.00807,3332.7,3331.2,3.00185]
[1738324999263,0.8052,3332.2,3330.8,0.8287]
[1738324999469,0.8052,3332.2,3330.9,3.00219]
[1738324999470,0.565,3332.1,3330.9,3.00219]
[1738324999756,0.565,3332.1,3330.8,0.85871969]
[1738324999911,3.80624,3332.2,3331.4,3.00167]
[1738325000108,0.8052,3332.2,3331.2,3.00185]
[1738325000338,3.00154,3331.7,3330.9,3.00218]
[1738325000539,3.00154,3331.7,3331.0,3.0]
[1738325000739,3.00185,3331.3,3330.7,3.00228]
[1738325001065,0.7562,3331.2,3330.4,0.1713974]
[1738325001361,3.00158,3331.6,3330.8,3.00221]
[1738325001654,3.00158,3331.6,3330.9,3.00215]
[1738325001856,0.0075,3331.7,3331.0,3.00203]
[1738325002055,0.7562,3331.9,3331.3,3.00175]
[1738325002258,0.375741,3331.8,3330.3,3.00268]
[1738325002456,3.00156,3331.6,3330.1,0.7871]
[1738325002662,3.00147,3331.7,3330.7,3.00235]
[1738325002860,3.75749,3331.9,3331.0,3.00202]
[1738325003064,3.75749,3331.9,3331.1,3.00201]
[1738325003357,0.565,3331.8,3330.1,0.7871]
[1738325003512,0.0075,3331.7,3330.2,0.03002254]
[1738325003866,0.0075,3331.7,3330.9,3.00219]
[1738325003867,3.00166,3331.5,3330.9,3.00219]
[1738325004161,3.75752,3331.9,3331.2,3.00185]
[1738325004461,0.2,3331.3,3331.1,3.00195]
[1738325004819,0.2,3331.3,3330.9,3.00217]
[1738325005163,0.3,3331.0,3329.7,3.00319]
[1738325005319,0.3,3331.0,3329.5,3.80883045]
[1738325005320,0.1,3330.7,3329.5,3.80883045]
[1738325005661,0.1,3330.3,3329.2,3.00372]
[1738325006014,8.85,3330.2,3329.8,3.00313]
[1738325006160,8.85,3330.2,3329.6,3.00336]
[1738325006161,0.1,3330.1,3329.6,3.00336]
[1738325006370,8.85,3330.0,3329.6,3.00336]
[1738325006566,0.2,3329.9,3329.6,3.00336]
[1738325006859,8.85,3329.8,3329.4,3.00353]
[1738325007061,8.85,3329.8,3329.7,3.00327]
[1738325007267,8.85,3329.8,3329.2,3.00372]
[1738325007561,8.85,3329.7,3329.5,3.0034]
[1738325007746,8.85,3329.8,3329.3,3.00363]
[1738325007926,8.85,3329.8,3329.4,3.00353]
[1738325008440,8.85,3329.8,3329.5,3.00339]
[1738325008651,8.85,3329.8,3329.3,3.00358]
[1738325009168,8.85,3329.8,3329.3,3.00362]
[1738325009348,14.2,3329.8,3329.0,0.7623]
[1738325009552,8.85,3329.7,3329.1,0.03003475]
[1738325009759,8.85,3329.7,3329.3,3.00363]
[1738325009932,8.85,3329.7,3329.5,3.00345]
[1738325010131,8.85,3329.7,3329.6,3.00336]
[1738325011977,8.85,3329.7,3329.6,6.604049]
[1738325012271,8.85,3329.7,3329.6,7.398749]
[1738325012577,8.85,3329.7,3329.6,6.79806]
[1738325013080,0.791,3330.9,3330.2,3.00282]
[1738325013081,8.85,3330.3,3330.2,3.00282]
[1738325013279,0.1,3330.9,3330.5,3.00255]
[1738325013280,8.85,3330.6,3330.5,3.00255]
[1738325013578,9.05,3330.6,3330.5,3.00255]
[1738325013777,9.15,3330.6,3330.1,3.00288]
[1738325014073,0.1,3330.5,3330.3,3.00266]
[1738325014239,9.05,3330.6,3330.3,3.00266]
[1738325014671,8.95,3330.5,3330.3,3.00266]
[1738325014888,8.85,3330.4,3330.3,3.00266]
[1738325015042,8.85,3330.4,3330.3,6.903497]
[1738325015380,8.85,3330.4,3330.3,7.673597]
[1738325015581,8.85,3330.4,3330.3,6.77276]
[1738325016262,14.2,3330.6,3330.5,3.00255]
[1738325016453,14.2,3330.6,3330.5,6.00255]
[1738325016789,0.1,3330.3,3329.8,3.00311]
[1738325016940,0.1,3330.0,3329.6,3.00329]
[1738325017142,0.1,3329.8,3329.4,3.00352]
[1738325017488,8.85,3329.7,3329.6,3.00336]
[1738325017845,9.05,3329.7,3329.6,3.00336]
[1738325018988,0.1,3329.5,3329.1,3.00381]
[1738325019187,8.85,3329.4,3329.2,3.00363]
[1738325019539,0.1,3329.3,3329.1,3.00381]
[1738325019771,8.85,3329.2,3328.9,3.00398]
[1738325019971,8.85,3329.2,3329.0,3.00389]
[1738325020470,0.1,3329.1,3328.6,3.00418]
[1738325020790,0.1,3329.1,3328.2,1.42035504]
[1738325020791,8.85,3329.0,3328.9,3.00399]
[1738325021087,0.1,3328.8,3328.2,1.42035504]
[1738325021288,8.85,3328.7,3328.4,3.00438]
[1738325022482,8.85,3328.7,3328.2,3.00461]
[1738325022483,0.1,3328.6,3328.3,3.00452]
[1738325022985,0.1,3328.6,3328.4,3.00444]
[1738325023343,0.1,3328.3,3328.0,3.0048]
[1738325023547,8.85,3328.2,3328.1,3.00471]
[1738325024240,8.85,3328.2,3328.1,6.79611]
[1738325024644,8.85,3328.2,3328.1,3.79611]
[1738325024874,0.1,3328.2,3327.0,0.7849]
[1738325025074,8.85,3328.1,3328.0,3.0048]
[1738325025423,8.85,3328.2,3328.1,3.00471]
[1738325025721,0.2,3328.3,3328.1,3.00471]
[1738325025888,0.1,3328.2,3327.9,3.00489]
[1738325026077,8.85,3328.1,3327.5,0.0300463]
[1738325026421,8.85,3328.1,3327.9,3.00489]
[1738325026586,0.2,3328.0,3327.9,3.00489]
[1738325027003,8.85,3328.1,3328.0,3.0048]
[1738325027220,9.05,3328.1,3328.0,3.0048]
[1738325027706,8.85,3328.1,3328.0,3.0048]
[1738325028320,0.1,3327.8,3326.7,5.38394]
[1738325028557,9.05,3328.1,3326.8,3.00586]
[1738325028558,0.1,3327.5,3326.8,3.00586]
[1738325028747,8.85,3327.4,3327.0,3.00571]
[1738325029228,8.85,3327.4,3325.9,1.27471955]
[1738325029229,0.9207,3327.1,3325.9,1.27471955]
[1738325029380,0.0075,3327.9,3326.8,3.00587]
[1738325029381,8.85,3327.0,3326.8,3.00587]
[1738325029586,8.85,3327.4,3327.1,3.00559]
[1738325030092,8.85,3327.4,3327.3,3.77543]
[1738325030425,0.1,3327.5,3326.8,0.77]
[1738325030627,0.3,3327.5,3326.8,3.77586]
[1738325030793,0.3,3327.5,3327.1,3.00561]
[1738325031123,0.3,3327.5,3327.0,3.00569]
[1738325031280,8.85,3327.4,3327.3,0.2205429]
[1738325031730,8.85,3327.4,3327.3,3.2259729]
[1738325032303,8.85,3327.4,3327.3,6.85213639]
[1738325032504,8.85,3328.1,3328.0,3.0048]
[1738325033702,8.8469953,3328.1,3328.0,3.0048]
[1738325034850,8.8469953,3328.1,3327.8,3.0350054]
[1738325034851,8.8469953,3328.1,3327.8,3.00491]
[1738325035010,5.35,3328.2,3327.8,3.00491]
[1738325035011,8.8469953,3328.0,3327.9,3.00489]
[1738325036183,8.8469953,3328.0,3327.9,3.22547513]
[1738325036461,8.9469953,3328.0,3327.9,0.22058513]
[1738325036753,11.16759483,3328.0,3327.9,0.22058513]
[1738325037049,19.53739483,3328.0,3327.9,0.22058513]
[1738325037614,19.53739483,3328.0,3327.0,3.03569236]
[1738325037615,16.53259483,3328.0,3327.0,3.03575236]
[1738325037809,0.3,3327.4,3327.0,0.03005236]
[1738325038124,0.1,3327.1,3326.9,3.0058]
[1738325038341,8.8469953,3327.0,3326.9,3.0058]
[1738325039121,8.8469953,3327.0,3326.9,4.62790734]
[1738325039327,8.8469953,3327.0,3326.9,4.02673734]
[1738325039553,8.8469953,3327.0,3326.9,7.02673734]
[1738325040379,8.8469953,3327.5,3327.4,6.00534]
[1738325040577,8.8469953,3327.9,3327.8,3.00498]
[1738325041035,8.8469953,3327.9,3327.8,4.47023762]
[1738325041234,8.8469953,3327.9,3327.8,4.44019069]
[1738325041830,5.35,3328.0,3327.9,6.00489]
[1738325042050,5.35,3328.0,3327.9,6.03493518]
[1738325042279,5.35,3328.0,3327.9,6.00489]
[1738325044770,0.26263596,3328.3,3328.1,3.00465]
[1738325044935,0.26263596,3328.3,3328.2,3.03466388]
[1738325045131,0.26263596,3328.3,3328.2,3.60855139]
[1738325045430,0.26263596,3328.3,3328.2,6.63859395]
[1738325045773,2.78998,3329.3,3328.4,0.015]
[1738325045953,5.35,3330.4,3330.3,3.00273]
[1738325046138,5.35,3330.7,3330.6,6.00246]
[1738325046342,5.35,3331.0,3330.9,3.00219]
[1738325046536,5.45,3331.2,3331.1,3.00201]
[1738325046849,0.1,3330.8,3330.1,0.7988]
[1738325047053,0.1,3330.8,3330.4,3.00262]
[1738325047270,0.1,3330.8,3330.6,3.00244]
[1738325048181,0.2,3330.9,3330.7,3.00237]
[1738325048383,0.2,3330.9,3330.8,3.00228]
[1738325049247,0.1,3331.0,3330.9,3.00219]
[1738325050794,0.1,3331.0,3330.7,3.00237]
[1738325050962,0.1,3330.6,3330.1,3.80168]
[1738325051168,0.1,3330.0,3329.7,3.00325]
[1738325051393,0.1,3329.6,3328.8,3.84074544]
[1738325051597,0.1,3329.6,3329.3,3.00358]
[1738325051888,0.1,3329.6,3329.4,3.00351]
[1738325052350,0.1,3329.6,3329.5,3.00345]
[1738325053198,0.1,3329.6,3329.2,3.03374194]
[1738325053495,0.1,3328.5,3327.8,3.84074544]
[1738325053650,0.2,3328.9,3328.7,3.00417]
[1738325053651,0.1,3328.8,3328.7,3.00417]
[1738325053851,0.1,3328.8,3328.6,3.00423]
[1738325054093,0.1,3328.8,3328.7,3.00417]
[1738325054262,0.1,3328.8,3328.6,3.03425918]
[1738325054466,0.1,3328.8,3328.6,3.03427918]
[1738325055171,0.1,3328.8,3328.6,3.00424]
[1738325055398,0.1,3328.8,3328.4,0.03003919]
[1738325055620,0.2,3328.7,3328.4,3.03440922]
[1738325055759,0.2,3329.1,3328.8,3.00408]
[1738325056101,0.1,3328.8,3328.5,3.00434]
[1738325056311,0.1,3328.8,3328.5,0.0300391]
[1738325056485,0.1,3328.8,3328.3,3.00451]
[1738325056486,0.2,3328.7,3328.3,3.00451]
[1738325056669,0.2,3328.7,3328.5,3.00433]
[1738325057573,0.1,3328.5,3328.3,3.00451]
[1738325057776,0.3,3328.7,3328.4,0.03004147]
[1738325057985,0.3,3328.7,3328.6,3.00426]
[1738325058404,0.3,3328.7,3328.4,3.00443]
[1738325058588,0.2,3328.5,3328.3,3.00453]
[1738325058898,0.1,3329.0,3328.9,3.00399]
[1738325059115,0.1,3329.0,3328.6,3.00426]
[1738325059460,0.1,3329.0,3328.7,3.00415]
[1738325059910,0.1,3329.0,3328.9,3.00399]
[1738325060108,0.1,3329.0,3328.7,3.00415]
[1738325060808,0.2,3328.9,3328.3,0.300453]
[1738325060968,0.2,3328.9,3328.8,3.00408]
[1738325061374,2.63462981,3329.4,3328.9,3.00399]
[1738325061699,0.3,3329.2,3329.0,3.00384]
[1738325062570,0.1,3329.2,3329.1,3.03384577]
[1738325062776,5.45,3329.6,3329.1,0.03003577]
[1738325063026,5.65,3329.6,3329.5,3.00345]
[1738325064014,5.35,3329.6,3329.5,3.00345]
[1738325065015,5.35,3329.6,3329.0,0.7864]
[1738325065016,0.3,3329.4,3329.0,3.00389]
[1738325065225,0.1,3329.1,3328.7,3.00415]
[1738325065523,0.1,3329.1,3328.9,3.00398]
[1738325065671,0.2,3329.0,3328.9,3.00398]
[1738325066715,0.2,3329.0,3328.7,6.00826]
[1738325066935,0.1,3328.9,3328.6,3.0]
[1738325067089,0.1,3328.7,3328.6,3.00426]
[1738325068277,0.1,3328.7,3328.4,3.00435]
[1738325068747,0.1,3328.7,3328.5,3.00434]
[1738325068935,0.1,3328.7,3328.6,3.00426]
[1738325069522,0.1,3328.7,3328.4,3.00435]
[1738325069678,0.1,3328.4,3328.2,3.00459]
[1738325069881,0.06019371,3328.4,3328.2,3.00459]
[1738325070121,0.06019371,3328.4,3328.3,3.00453]
[1738325071084,0.06019371,3328.4,3328.2,3.03463038]
[1738325071800,0.06019371,3328.0,3327.8,3.00493]
[1738325072000,0.06019371,3327.8,3327.7,0.00814]
[1738325072201,3.84337371,3327.8,3327.7,0.00814]
[1738325072387,9.19337371,3327.8,3327.7,0.00814]
[1738325073232,6.18839371,3327.8,3327.7,0.00814]
[1738325073592,9.19337371,3327.8,3327.7,0.00814]
[1738325074136,6.18839371,3327.8,3327.7,0.00814]
[1738325074933,5.35,3327.8,3327.7,6.82041]
[1738325075134,3.39788317,3327.8,3327.7,7.502451]
[1738325075834,0.26019371,3328.6,3328.5,3.00435]
[1738325075835,0.06019371,3328.6,3328.5,3.00435]
[1738325076189,0.06019371,3328.6,3328.5,3.03438894]
[1738325076420,0.2,3328.8,3328.5,3.03438894]
[1738325076421,0.06019371,3328.8,3328.7,3.00417]
[1738325076604,0.26019371,3328.8,3328.7,3.00417]
[1738325077130,0.26019371,3328.8,3328.3,3.00449]
[1738325077131,0.06019371,3328.6,3328.3,3.00449]
[1738325077297,0.26019371,3328.2,3328.0,3.00474]
[1738325077789,0.26019371,3328.2,3327.8,3.00498]
[1738325077989,0.06019371,3327.9,3327.8,3.00498]
[1738325078437,0.26019371,3327.9,3327.8,3.00498]
[1738325079993,0.26019371,3327.9,3327.7,0.00814]
[1738325080205,0.26019371,3327.9,3327.7,3.0132]
[1738325080406,0.26019371,3327.9,3327.7,0.00814]
[1738325080593,0.26019371,3327.9,3327.7,3.01321]
[1738325082039,0.26019371,3327.9,3327.8,3.03502822]
[1738325082590,0.2,3328.1,3327.8,0.63487204]
[1738325082787,0.06019371,3328.3,3327.8,0.63487204]
[1738325082788,0.2,3328.0,3327.9,3.00489]
[1738325083031,0.2,3328.0,3327.9,3.03493264]
[1738325083540,3.00402,3328.9,3327.9,0.85264264]
[1738325083541,0.26019371,3328.5,3327.9,0.85264264]
[1738325083835,0.06019371,3328.5,3328.4,3.00444]
[1738325084186,0.06019371,3328.5,3328.4,3.03447973]
[1738325084804,0.06019371,3328.5,3328.2,3.00454]
[1738325085164,0.06019371,3328.5,3328.4,3.00444]
[1738325086617,0.26019371,3328.5,3328.4,3.608342]
[1738325086929,0.26019371,3328.5,3328.3,3.03455996]
[1738325087151,0.26019371,3328.5,3328.2,3.0]
[1738325087457,0.06019371,3328.3,3328.2,3.0]
[1738325087854,0.06019371,3328.3,3328.2,6.00462]
[1738325088059,0.06019371,3328.3,3328.2,3.0]
[1738325088775,0.06019371,3328.3,3328.1,3.00464]
[1738325089078,0.2,3328.2,3328.1,3.00464]
[1738325089976,0.26019371,3327.8,3327.7,0.00814]
[1738325090141,3.26517371,3327.8,3327.7,0.00814]
[1738325090659,0.26019371,3327.8,3327.7,0.00814]
[1738325090978,3.26517371,3327.8,3327.7,0.00814]
[1738325091174,3.89519623,3327.8,3327.7,0.00814]
[1738325093372,3.26517371,3327.8,3327.7,0.00814]
[1738325093550,3.28017371,3327.8,3327.7,0.00814]
[1738325093949,9.01268669,3327.8,3327.7,0.00814]
[1738325094145,10.35118669,3327.8,3327.7,0.00814]
[1738325094362,13.35118669,3327.8,3327.7,0.00814]
[1738325094566,15.28728036,3327.8,3327.7,0.00814]
[1738325094951,12.28728036,3327.8,3327.7,0.00814]
[1738325095449,11.73728036,3327.8,3327.7,0.00814]
[1738325095781,9.79368669,3327.8,3327.7,0.00814]
[1738325098480,7.45905688,3327.8,3327.7,0.00814]
[1738325098866,3.65807688,3327.8,3327.7,0.00814]
[1738325099468,6.67055688,3327.8,3327.7,0.00814]
[1738325100042,7.62478402,3327.8,3327.7,0.00814]
[1738325100607,8.99768669,3327.8,3327.7,0.00814]
[1738325101804,5.99270669,3327.8,3327.7,0.00814]
[1738325102672,8.99768669,3327.8,3327.7,0.00814]
[1738325102874,5.99270669,3327.8,3327.7,0.00814]
[1738325103656,5.79270669,3327.8,3327.7,3.01321]
[1738325103938,5.79270669,3327.8,3327.7,3.96461341]
[1738325104068,5.79270669,3327.8,3327.7,0.00814]
[1738325104698,5.73251298,3327.8,3327.7,3.01321]
[1738325104904,5.73251298,3327.8,3327.7,0.00814]
[1738325104905,5.99270669,3327.8,3327.7,0.00814]
[1738325105107,8.99768669,3327.8,3327.7,0.00814]
[1738325105605,5.99270669,3327.8,3327.7,0.00814]
[1738325106109,8.99768669,3327.8,3327.7,0.00814]
[1738325107810,5.99270669,3327.8,3327.7,0.00814]
[1738325108009,5.99270669,3327.8,3327.7,0.35551453]
[1738325108223,5.99270669,3327.8,3327.7,0.00814]
[1738325108418,8.99768669,3327.8,3327.7,0.00814]
[1738325109991,5.99270669,3327.8,3327.7,0.00814]
[1738325113441,5.99270669,3327.8,3327.7,3.01321]
[1738325114033,5.99270669,3327.8,3327.7,0.00814]
[1738325115104,8.99768669,3327.8,3327.7,0.00814]
[1738325115306,10.96854936,3327.8,3327.7,0.00814]
[1738325115524,11.51854936,3327.8,3327.7,0.00814]
[1738325115891,10.96854936,3327.8,3327.7,0.00814]
[1738325116522,11.51854936,3327.8,3327.7,0.00814]
[1738325116720,10.96854936,3327.8,3327.7,0.00814]
[1738325116944,10.96854936,3327.8,3326.1,3.82075]
[1738325116945,0.06019371,3326.2,3326.1,3.82075]
[1738325117100,2.39482352,3326.2,3326.1,4.57944605]
[1738325117295,2.33462981,3326.2,3326.1,4.54938553]
[1738325117608,2.33462981,3326.2,3326.1,4.57944795]
[1738325117809,2.18467497,3326.2,3326.1,7.57944795]
[1738325118024,3.39788317,3327.1,3327.0,3.80491]
[1738325118336,3.65807688,3327.1,3327.0,0.380491]
[1738325118540,3.65807688,3327.1,3326.9,3.0]
[1738325118711,0.06019371,3326.9,3326.8,3.0058]
[1738325119240,0.26019371,3326.9,3326.8,3.0058]
[1738325119452,3.3658717,3327.1,3327.0,6.00571]
[1738325119761,0.06019371,3328.7,3328.5,0.8073]
[1738325119899,0.06019371,3328.8,3328.7,3.00413]
[1738325120234,0.2,3329.0,3328.9,3.00399]
[1738325120439,0.06019371,3328.8,3328.7,3.00409]
[1738325120744,0.2,3328.7,3328.6,3.46560527]
[1738325121412,0.2,3328.7,3328.3,3.00452]
[1738325121599,0.06019371,3328.4,3328.2,3.46560527]
[1738325121916,0.2,3328.3,3328.2,3.46560527]
[1738325122125,0.2,3328.1,3327.9,3.00482]
[1738325122290,0.26019371,3328.1,3328.0,3.0048]
[1738325122495,0.26019371,3328.4,3328.1,3.00471]
[1738325122704,0.26019371,3328.4,3328.3,6.47013527]
[1738325123239,0.26019371,3328.8,3328.7,3.00417]
[1738325123394,8.91019371,3329.0,3328.9,3.00399]
[1738325124536,9.11019371,3329.0,3328.9,3.00399]
[1738325125110,8.85,3329.0,3328.9,3.00399]
[1738325125308,0.06019371,3329.2,3329.1,3.00381]
[1738325125511,0.06019371,3329.2,3329.1,6.46941527]
[1738325125713,0.2,3329.3,3329.1,6.46941527]
[1738325125913,0.2,3329.3,3329.2,3.03375415]
[1738325125914,0.26019371,3329.3,3329.2,3.03375415]
[1738325126482,0.06019371,3329.3,3329.2,3.03375415]
[1738325126646,0.06019371,3329.3,3329.2,3.98407109]
[1738325126938,0.06019371,3329.3,3329.2,3.95403694]
[1738325127739,3.39788317,3329.5,3329.4,3.00354]
[1738325128248,3.33768946,3329.5,3329.4,3.77414]
[1738325128410,3.33768946,3329.5,3329.4,4.84732069]
[1738325129439,3.33768946,3329.5,3329.4,4.87735136]
[1738325130055,0.06019371,3329.9,3329.4,4.87735136]
[1738325130278,0.06019371,3329.9,3329.8,3.00318]
[1738325130595,0.2,3330.0,3329.9,3.00309]
[1738325130794,0.2,3330.0,3329.9,6.49872047]
[1738325131001,0.2,3330.0,3329.9,7.35361834]
[1738325131193,0.2,3330.0,3329.9,4.35052834]
[1738325131427,0.2,3330.0,3329.9,7.38364321]
[1738325131593,0.2,3330.0,3329.9,7.35361834]
[1738325131813,0.26019371,3330.4,3330.3,3.76643]
[1738325132016,0.26019371,3330.4,3330.3,7.23203527]
[1738325132235,0.26019371,3330.4,3330.3,7.29208383]
[1738325132544,0.06019371,3330.4,3330.3,7.29208383]
[1738325132745,0.26019371,3330.4,3330.3,7.29208383]
[1738325134094,0.26019371,3330.4,3330.3,0.06004856]
[1738325134301,1.03819371,3330.4,3330.3,0.06004856]
[1738325134536,0.26019371,3329.9,3329.8,3.03320846]
[1738325134844,0.26019371,3329.9,3329.8,3.08642525]
[1738325135717,0.26019371,3329.9,3329.8,0.05321679]
[1738325136047,0.26019371,3329.9,3329.7,3.46560527]
[1738325136252,0.26019371,3329.4,3329.3,6.46922527]
[1738325138374,0.2,3329.4,3329.3,7.4165268]
[1738325139331,0.06019371,3329.8,3329.5,3.00345]
[1738325139562,0.06019371,3329.8,3329.7,6.46887527]
[1738325140132,0.2,3329.9,3329.7,6.46887527]
[1738325140353,0.2,3329.9,3329.8,3.03320676]
[1738325140555,0.06019371,3329.8,3329.7,6.46887527]
[1738325141630,0.06019371,3329.8,3329.7,6.52031777]
[1738325142077,0.06019371,3329.8,3329.7,7.47268655]
[1738325143277,0.06019371,3329.8,3329.7,6.52031777]
[1738325145698,0.26019371,3330.2,3330.1,3.00291]
[1738325145846,0.2,3330.2,3330.1,6.49854044]
[1738325146047,0.2,3330.2,3330.1,6.52012362]
[1738325147348,0.06019371,3330.3,3330.1,6.52012362]
[1738325147696,0.26019371,3330.3,3330.2,3.00282]
[1738325148298,0.26019371,3330.3,3330.2,3.05442835]
[1738325148788,0.26019371,3330.3,3330.2,3.08445325]
[1738325148971,0.26019371,3330.3,3330.2,3.05442835]
[1738325149180,0.26019371,3330.3,3330.2,3.08445219]
[1738325149369,0.2,3330.3,3330.2,3.08445219]
[1738325149572,0.06019371,3330.5,3330.2,3.08445219]
[1738325149573,0.26019371,3330.5,3330.4,3.00264]
[1738325149894,0.2,3330.5,3330.4,3.03266165]
[1738325150064,0.2,3330.5,3330.4,3.08427]
[1738325150382,0.26019371,3330.5,3330.4,3.08427]
[1738325150549,0.26019371,3330.5,3330.4,0.08163]
[1738325150952,0.26019371,3330.5,3330.4,0.05160835]
[1738325151664,0.2,3330.3,3330.1,3.46560527]
[1738325151988,0.2,3330.3,3330.2,0.03002201]
[1738325152175,0.2,3330.3,3330.2,0.08163036]
[1738325152686,0.2,3330.3,3330.2,0.05160835]
[1738325152887,0.06019371,3330.5,3330.2,0.08163038]
[1738325153094,0.26019371,3330.7,3330.2,0.08163038]
[1738325153265,0.26019371,3330.7,3330.6,3.46560527]
[1738325153657,0.26019371,3330.7,3330.6,3.51721362]
[1738325156995,0.2,3330.7,3330.6,3.51721362]
[1738325157296,0.2,3330.8,3330.6,3.54723205]
[1738325157599,0.2,3330.8,3330.6,3.51721362]
[1738325157767,0.06019371,3330.7,3330.6,3.51721362]
[1738325159676,0.89099371,3330.7,3330.6,0.05160835]
[1738325159856,0.06019371,3330.3,3330.2,3.46560527]
[1738325160451,0.06019371,3329.9,3329.8,3.46560527]
[1738325160696,9.11019371,3329.9,3329.8,3.46560527]
[1738325160866,9.11019371,3329.9,3329.8,6.46560527]
[1738325161072,9.11019371,3329.9,3329.8,3.46560527]
[1738325162003,0.26019371,3329.5,3329.4,3.46560527]
[1738325162598,0.26019371,3329.5,3329.4,3.49563597]
[1738325163407,0.26019371,3329.5,3329.4,3.46560527]
[1738325163708,0.26019371,3329.5,3329.4,6.49563508]
[1738325163909,0.26019371,3329.5,3329.4,6.46560527]
[1738325164123,0.26019371,3329.5,3329.4,3.46560527]
[1738325164672,0.26019371,3329.5,3329.4,3.49563498]
[1738325164873,0.06019371,3329.7,3329.4,3.90554522]
[1738325165067,0.06019371,3329.7,3329.6,6.46560527]
[1738325166683,8.91019371,3329.7,3329.6,6.46560527]
[1738325168610,8.91019371,3329.7,3329.6,6.46228083]
[1738325169193,8.91019371,3329.7,3329.6,5.8128626]
[1738325169511,8.77359685,3329.7,3329.6,6.39414886]
[1738325169719,8.44459685,3329.7,3329.6,7.20824886]
[1738325170809,8.44459685,3329.7,3329.6,6.6269626]
[1738325171015,8.70479056,3329.7,3329.6,5.7628626]
[1738325171508,8.70479056,3329.7,3329.6,2.8128626]
[1738325171713,8.70479056,3329.7,3329.6,2.86064683]
[1738325172714,8.70479056,3329.7,3329.6,2.86140528]
[1738325173212,8.70479056,3329.7,3329.6,0.04778423]
[1738325173576,8.70479056,3329.7,3329.5,3.0]
[1738325173779,8.70479056,3329.7,3329.6,0.04778423]
[1738325175191,9.65140962,3329.7,3329.6,0.04778423]
[1738325175416,10.44530962,3329.7,3329.6,0.04778423]
[1738325175614,0.26019371,3329.1,3329.0,3.46291885]
[1738325176033,0.26019371,3328.7,3328.6,3.46291885]
[1738325176241,0.26019371,3328.7,3328.1,2.378]
[1738325176242,0.06019371,3328.3,3328.2,3.46291885]
[1738325176419,8.18440314,3328.7,3328.4,0.7821]
[1738325176645,0.2,3329.2,3328.7,0.55]
[1738325176918,0.2,3329.2,3329.1,3.46291885]
[1738325177249,0.2,3329.2,3329.1,6.80921073]
[1738325177560,7.8687303,3329.4,3329.2,3.0]
[1738325177714,7.40853659,3329.3,3329.2,0.81523273]
[1738325178052,7.40853659,3329.3,3329.2,3.81523228]
[1738325178230,7.40853659,3329.3,3329.2,4.57767658]
[1738325178933,7.40853659,3329.3,3329.2,4.5476443]
[1738325179234,7.40853659,3329.3,3329.2,3.0]
[1738325179432,0.2,3328.8,3328.7,3.46291885]
[1738325179655,0.26019371,3328.8,3328.7,3.46291885]
[1738325181672,0.26019371,3328.4,3328.3,4.04701074]
[1738325181853,7.6687303,3328.4,3328.3,4.04701074]
[1738325182023,7.6687303,3328.4,3328.3,7.04701074]
[1738325182627,7.6687303,3328.4,3328.3,6.46291885]
[1738325184771,7.6687303,3328.4,3328.3,3.46291885]
[1738325184973,0.26019371,3328.0,3327.9,3.46291885]
[1738325185425,0.26019371,3328.0,3327.9,3.49296338]
[1738325185620,0.26019371,3328.0,3327.9,6.49296338]
[1738325185868,0.26019371,3328.0,3327.9,7.36725673]
[1738325186879,0.26019371,3328.0,3327.9,7.41424684]
[1738325187961,0.26019371,3328.0,3327.9,7.36725673]
[1738325188164,0.26019371,3328.0,3327.9,7.41486605]
[1738325190099,7.6687303,3328.0,3327.9,3.51052817]
[1738325190255,8.4274303,3328.0,3327.9,0.04760932]
[1738325190644,0.26019371,3327.6,3326.7,0.80934976]
[1738325190850,0.06019371,3327.2,3327.1,3.46291885]
[1738325191044,0.06019371,3327.2,3327.1,3.51086956]
[1738325191260,0.06019371,3327.2,3327.1,3.86195652]
[1738325191464,0.06019371,3327.2,3327.1,0.04795071]
[1738325191663,0.06019371,3326.9,3326.8,3.46291885]
[1738325191865,0.06019371,3327.3,3326.9,3.0]
[1738325192096,0.26019371,3327.3,3327.2,3.46291885]